Cogmind - Beta 12 @@@ ROGUE MODE // 2024.01.29 @ 21:57:45 Player: 277 Result: Destroyed by P-80 Master with Gamma Rifle Performance ------------- Evolutions (9) 4500 Regions Visited (17) 3400 Robots Destroyed (49) 245 Value Destroyed (1420) 1420 Prototype IDs (56) 1120 Alien Tech Used (6) 1200 Bonus (6216) 6216 TOTAL SCORE: 18101 Bonus ------- Pacifist 200 High Alert Combat Kills 132 Follower Combat Kills 584 Met Zhirov 300 Used Core Reset Matrix 3000 Met Sigix 2000 Cogmind --------- Core Integrity 0/1600 Matter 295/300 Energy 74/100 System Corruption 2% Temperature Cool (1) Movement Flying (40) Location -1/Access Parts ------- > --- POWER (2) -------- (None) > --- PROPULSION (7) --- Xenon Bombardment Thruster > --- UTILITY (14) ----- Enhanced Optical Array Improved Hacking Suite > --- WEAPON (2) ------- Chainsword > --- INVENTORY (5) ---- Graphene Brace Sigix Containment Pod Sigix Corpse Peak State ------------ > --- POWER ------------ Micro Antimatter Reactor Light Quantum Reactor > --- PROPULSION ------- Cooled Nuclear Pulse Thruster Field Propulsion Array Q-thruster Impulse Thruster Array > --- UTILITY ---------- Advanced Cryofiber Web Experimental Energy Well Machine Analyzer Enhanced Optical Array Advanced Melee Analysis Suite Advanced Melee Analysis Suite Advanced Melee Analysis Suite Nanoactuators Centrium Medium Armor Plating Graphene Brace Improved Hacking Suite Advanced System Shield Advanced Corruption Screen > --- WEAPON ----------- Thunder Hammer > --- INVENTORY -------- Matter Drive Sigix Containment Pod Sigix Corpse [Rating: 156] Favorites ----------- Power Micro Antimatter Reactor Engine Improved Ion Engine Power Core Light Fission Core Reactor Micro Antimatter Reactor Propulsion Xenon Bombardment Thruster Leg Carbon-fiber Leg Wheel Compact Wheel Hover Unit Improved Hover Unit Flight Unit Xenon Bombardment Thruster Utility Advanced Melee Analysis Suite Device Advanced Sensor Array Storage Experimental Energy Well Processor Advanced Melee Analysis Suite Hackware Improved Hacking Suite Protection Centrium Medium Armor Plating Artifact Phase Redirector Weapon Axe Energy Cannon Ion Burst Cannon Impact Weapon Thunder Hammer Slashing Weapon Axe Special Melee Weapon Improved Datajack Build | -11 -10 -9 -8 -7 -7 -6 -6 -5 -5 -5 -5 -4 -4 -3 -3 -2 -1 ------- Run | Jun Mat Mat Mat Fac Sto Fac Ext Fac Upp Upp Zhi Pro Fac Res Qua Res Acc Slots Evolved 18 | . . 2 2 2 . 2 . 2 . . . . 2 2 . 2 2 Power 1 | . . . . . . . . . . . . . . . . 1 . Propulsion 5 | . . . . 2 . 1 . . . . . . 1 . . . 1 Utility 12 | . . 2 2 . . 1 . 2 . . . . 1 2 . 1 1 Weapon . | . . . . . . . . . . . . . . . . . . Parts Attached 132 | . 3 5 16 10 1 9 17 15 3 2 6 1 3 8 10 13 10 Power 14 | . . 1 1 2 . 1 1 2 . . . 1 . 1 . 2 2 Engine 4 | . . 1 . . . . 1 2 . . . . . . . . . Core 6 | . . . 1 2 . 1 . . . . . 1 . . . 1 . Reactor 4 | . . . . . . . . . . . . . . 1 . 1 2 Propulsion 36 | . . 2 4 3 . . 10 6 . 1 3 . 1 . 2 1 3 Treads . | . . . . . . . . . . . . . . . . . . Leg 9 | . . . 1 . . . 8 . . . . . . . . . . Wheel 4 | . . . 1 . . . 2 . . 1 . . . . . . . Hover 1 | . . . 1 . . . . . . . . . . . . . . Flight 22 | . . 2 1 3 . . . 6 . . 3 . 1 . 2 1 3 Utility 65 | . 3 1 7 4 . 7 5 5 3 1 3 . 2 6 6 10 2 Device 24 | . 2 . 1 1 . 3 1 3 1 . 2 . 1 2 1 6 . Storage 4 | . . . 1 . . . . . . . . . . 2 1 . . Processor 17 | . . . 1 3 . 3 3 1 1 1 . . . 1 . 2 1 Hackware 7 | . . . 2 . . 1 . . . . 1 . . . 1 2 . Protection 11 | . 1 1 2 . . . 1 1 1 . . . 1 1 1 . 1 Artifact 2 | . . . . . . . . . . . . . . . 2 . . Weapon 17 | . . 1 4 1 1 1 1 2 . . . . . 1 2 . 3 Energy Gun . | . . . . . . . . . . . . . . . . . . Energy Cannon 1 | . . . . . 1 . . . . . . . . . . . . Ballistic Gun . | . . . . . . . . . . . . . . . . . . Ballistic Cannon . | . . . . . . . . . . . . . . . . . . Launcher . | . . . . . . . . . . . . . . . . . . Special Weapon . | . . . . . . . . . . . . . . . . . . Impact Weapon 7 | . . . 3 . . . . . . . . . . 1 1 . 2 Slashing Weapon 8 | . . 1 1 . . 1 1 2 . . . . . . 1 . 1 Piercing Weapon . | . . . . . . . . . . . . . . . . . . Special Melee Weapon 1 | . . . . 1 . . . . . . . . . . . . . Unidentified Prototypes 12 | . . . . . 1 . . . . . 1 . . 4 5 . 1 Parts Lost 51 | . 1 2 6 5 . . 11 . 1 1 . 1 2 . 3 1 17 Power 5 | . . 1 1 1 . . 1 . . . . 1 . . . . . Propulsion 23 | . . 1 4 1 . . 7 . 1 1 . . . . 2 . 6 Utility 17 | . 1 . . 2 . . 3 . . . . . 1 . . 1 9 Weapon 6 | . . . 1 1 . . . . . . . . 1 . 1 . 2 Highest Loss Streak 16 | . 1 2 3 5 . . 9 . 1 1 . 1 2 . 3 1 16 To Critical Strikes . | . . . . . . . . . . . . . . . . . . Average Slot Usage (%) 79 | . 16 33 68 56 84 81 91 91 96 88 94 100 99 90 88 82 69 Engine 1 | . . 2 2 . . . . 5 5 5 5 . . . . . . Core 1 | . . . . 3 7 6 5 . . . . 4 5 1 . . . Reactor 1 | . . . . . . . . . . . . . . 2 4 5 3 Leg 3 | . . . . 2 . . 17 . . . . . . . . . . Flight 15 | . . 9 7 4 23 20 6 20 27 18 24 29 31 28 23 18 12 Device 7 | . 12 . 2 2 7 6 5 11 10 11 10 11 10 9 9 11 10 Storage 1 | . . . 4 2 . . . . . . . . . 5 5 4 3 Processor 21 | . . . 4 16 23 22 22 29 29 34 32 29 26 25 28 26 24 Hackware 9 | . . . 13 15 15 16 16 5 5 5 8 11 10 4 4 7 8 Protection 3 | . 3 14 12 1 . . . 4 3 . . . 5 4 4 4 3 Impact Weapon 1 | . . . 6 2 . . . . . . . . . . 2 4 3 Slashing Weapon 5 | . . 7 7 . . 2 9 9 11 11 11 11 9 4 1 . . Special Melee Weapon 1 | . . . . 4 7 6 3 . . . . . . . . . . Naked Turns 15 | . 15 . . . . . . . . . . . . . . . . Heaviest Build 39 | . 2 8 13 13 8 13 15 20 24 17 17 20 27 32 37 39 26 Greatest Support 85 | 3 3 8 16 15 15 15 85 29 29 23 30 30 36 36 50 50 48 Greatest Overweight (x) 3 | . . . 2 1 . . 2 3 . . . . . . 1 . . Average Overweight (x) . | . . . . . . . . . . . . . . . . . . Largest Inventory Capacity 8 | 5 5 5 8 8 5 5 5 5 5 5 5 5 5 5 5 5 5 Average Capacity 5 | 5 5 5 6 5 5 5 5 5 5 5 5 5 5 5 5 5 5 Most Carried 6 | . 2 5 6 5 5 5 5 5 5 5 5 5 3 3 5 5 5 Average Carried 4 | . . 3 4 4 3 4 4 2 4 4 5 4 2 2 4 5 4 Final Capacity 8 | 5 5 5 8 5 5 5 5 5 5 5 5 5 5 5 5 5 5 Final Carried 5 | . 2 5 5 3 3 5 4 4 5 5 5 4 3 3 5 5 4 Class Distribution -------------------- 33% | Hacker-Sprinter 20% | Mutant 19% | Hacker-Mutant 15% | Sprinter 8% | Commander-Mutant Dominant Class ---------------- Mutant | -10/Materials Mutant | -9/Materials Hacker-Mutant | -8/Materials Hacker-Mutant | -7/Factory Hacker-Sprinter | -7/Storage Hacker-Sprinter | -6/Factory Commander-Mutant | -6/Extension Mutant | -5/Factory Sprinter | -5/Upper Caves Mutant | -5/Upper Caves Hacker-Sprinter | -5/Zhirov Hacker-Sprinter | -4/Proximity Caves Hacker-Sprinter | -4/Factory Sprinter | -3/Research Sprinter | -3/Quarantine Hacker-Sprinter | -2/Research Hacker-Sprinter | -1/Access Resources | -11 -10 -9 -8 -7 -7 -6 -6 -5 -5 -5 -5 -4 -4 -3 -3 -2 -1 ----------- Run | Jun Mat Mat Mat Fac Sto Fac Ext Fac Upp Upp Zhi Pro Fac Res Qua Res Acc Matter Collected 1440 | 177 23 70 135 15 . . 294 126 . 45 115 . 40 50 155 130 65 Remotely . | . . . . . . . . . . . . . . . . . . Salvage Created 2858 | . . 143 665 . . . 587 156 . . 358 . 164 159 170 158 298 Parts 77 | . . 16 17 . . . 18 4 . . . . 6 4 4 3 5 Haulers Intercepted 6 | . . . . . . . 1 1 . . . . . 1 . 1 2 Recyclers Shooed . | . . . . . . . . . . . . . . . . . . Parts Field Recycled . | . . . . . . . . . . . . . . . . . . Retrieved Matter . | . . . . . . . . . . . . . . . . . . Parts Self-Destructed . | . . . . . . . . . . . . . . . . . . Prevented . | . . . . . . . . . . . . . . . . . . Kills | -11 -10 -9 -8 -7 -7 -6 -6 -5 -5 -5 -5 -4 -4 -3 -3 -2 -1 ------- Run | Jun Mat Mat Mat Fac Sto Fac Ext Fac Upp Upp Zhi Pro Fac Res Qua Res Acc Combat Hostiles Destroyed 25 | . . 4 13 . . . 2 . . . . . . . 2 1 3 Melee 18 | . . 4 9 . . . 2 . . . . . . . 2 . 1 Classes Destroyed 10 | . . 4 3 . . . 1 . . . . . . . 2 . . Worker 6 | . . 1 2 . . . . 1 . . . . 1 . . 1 . Tunneler 2 | . . . 1 . . . . . . . . . . 1 . . . Hauler 6 | . . . . . . . 1 1 . . . . . 1 . 1 2 Recycler 6 | . . . 2 . . . 3 . . . . . 1 . . . . Operator 3 | . . 1 . . . . . 1 . . . . . 1 . . . Swarmer 9 | . . 3 3 . . . . . . . . . . . . . 3 Grunt 9 | . . . 8 . . . 1 . . . . . . . . . . Researcher 1 | . . . . . . . . . . . . . . . 1 . . Sentry 5 | . . 1 2 . . . 1 . . . . . . . . 1 . Programmer 2 | . . . . . . . . . . . . . . . 2 . . Best Kill Streak 6 | . . 3 6 . . . 1 2 . . . . 2 2 2 2 3 Combat Bots Only 6 | . . 3 6 . . . 1 . . . . . . . 2 1 3 Max Kills in Single Turn 1 | . . 1 1 . . . 1 1 . . . . 1 1 1 1 1 Gunslinging . | . . . . . . . . . . . . . . . . . . Exploded . | . . . . . . . . . . . . . . . . . . Melee 1 | . . 1 1 . . . 1 . . . . . . . 1 . 1 Uniques/NPCs Destroyed . | . . . . . . . . . . . . . . . . . . Combat | -11 -10 -9 -8 -7 -7 -6 -6 -5 -5 -5 -5 -4 -4 -3 -3 -2 -1 -------- Run | Jun Mat Mat Mat Fac Sto Fac Ext Fac Upp Upp Zhi Pro Fac Res Qua Res Acc Damage Taken 8537 | . 180 428 758 559 49 6 1111 86 178 99 . 53 163 36 906 592 3333 Core 3747 | . 158 320 356 329 10 . 324 . 62 63 . 16 24 14 229 228 1614 Absorbed by Shields 135 | . . . . . . . 135 . . . . . . . . . . Redirected to Core 61 | . . . . . . . . . . . . . . . 40 21 . Redirected to Shielding 119 | . . 7 49 1 . . . . . . . . . . . . 62 Regen/Repaired (Parts) 57 | . . . 7 . . . . . . . . . . . 50 . . Core Remaining (%) 65 | 100 36 20 35 . 51 . 61 . . . . 85 97 . 81 84 . Volleys Fired . | . . . . . . . . . . . . . . . . . . Largest . | . . . . . . . . . . . . . . . . . . Hottest . | . . . . . . . . . . . . . . . . . . Shots Fired . | . . . . . . . . . . . . . . . . . . Gun . | . . . . . . . . . . . . . . . . . . Cannon . | . . . . . . . . . . . . . . . . . . Launcher . | . . . . . . . . . . . . . . . . . . Special . | . . . . . . . . . . . . . . . . . . Kinetic . | . . . . . . . . . . . . . . . . . . Thermal . | . . . . . . . . . . . . . . . . . . Explosive . | . . . . . . . . . . . . . . . . . . Electromagnetic . | . . . . . . . . . . . . . . . . . . Robot Hit Streak . | . . . . . . . . . . . . . . . . . . Robot Miss Streak . | . . . . . . . . . . . . . . . . . . Penetration Max . | . . . . . . . . . . . . . . . . . . Secondary Targets . | . . . . . . . . . . . . . . . . . . Shots Hit Robots 173 | . . 7 56 9 . . 34 14 . . 10 . 2 9 10 12 10 Core Hits 38 | . . 5 14 . . . 6 3 . . 2 . 2 3 1 . 2 Critical Kills 3 | . . . 1 . . . . . . . . . . . . . 2 Critical Parts Destroyed 11 | . . . 5 1 . . . . . . . . . . 1 2 2 Critical Strikes 17 | . . . 6 1 . . . . . . . . . 1 1 2 6 Smash 14 | . . . 6 1 . . . . . . . . . . 1 2 4 Sever 3 | . . . . . . . . . . . . . . 1 . . 2 Melee Attacks 290 | . . 15 70 13 . . 37 30 . . 10 . 8 13 34 27 33 Impact 135 | . . . 52 9 . . . . . . . . . . 19 27 28 Slashing 137 | . . 15 18 . . . 23 30 . . 10 . 8 13 15 . 5 Piercing . | . . . . . . . . . . . . . . . . . . Sneak Attacks 39 | . . 2 5 4 . . 19 1 . . . . 2 2 1 2 1 Combat Hostiles 1 | . . . . 1 . . . . . . . . . . . . . Follow-up Attacks 19 | . . . 12 . . . 1 4 . . 2 . . . . . . Damage Inflicted 8084 | . . 212 1898 138 . . 1062 713 . . 871 . 189 536 970 757 738 Guns . | . . . . . . . . . . . . . . . . . . Cannons . | . . . . . . . . . . . . . . . . . . Explosions . | . . . . . . . . . . . . . . . . . . Melee 8084 | . . 212 1898 138 . . 1062 713 . . 871 . 189 536 970 757 738 Ramming . | . . . . . . . . . . . . . . . . . . Kinetic . | . . . . . . . . . . . . . . . . . . Thermal . | . . . . . . . . . . . . . . . . . . Explosive . | . . . . . . . . . . . . . . . . . . Electromagnetic . | . . . . . . . . . . . . . . . . . . Impact 3439 | . . . 1462 138 . . . . . . . . . . 455 757 627 Slashing 4645 | . . 212 436 . . . 1062 713 . . 871 . 189 536 515 . 111 Piercing . | . . . . . . . . . . . . . . . . . . Highest Corruption 1 | . . . . 1 1 . . . . . . . . . . . 1 Average Corruption 1 | . . . . 1 1 . . . . . . . . . . . 1 Corruption Purged . | . . . . . . . . . . . . . . . . . . Corruption Blocked 35 | . . . . . . . . . . . . . . . 22 . 13 Effects 1 | . . . . 1 . . . . . . . . . . . . . Message Errors 1 | . . . . 1 . . . . . . . . . . . . . Overload Shots . | . . . . . . . . . . . . . . . . . . Overflow Damage 2044 | . . 22 384 24 . . 107 199 . . 450 . . 59 326 277 196 Projectiles . | . . . . . . . . . . . . . . . . . . Explosions . | . . . . . . . . . . . . . . . . . . Melee 2044 | . . 22 384 24 . . 107 199 . . 450 . . 59 326 277 196 Knockbacks 9 | . . . 4 . . . . . . . . . . . 3 . 2 Impact 9 | . . . 4 . . . . . . . . . . . 3 . 2 Kinetic . | . . . . . . . . . . . . . . . . . . Secondary . | . . . . . . . . . . . . . . . . . . Self-Inflicted Damage . | . . . . . . . . . . . . . . . . . . Shots . | . . . . . . . . . . . . . . . . . . Rammed . | . . . . . . . . . . . . . . . . . . Targets Rammed . | . . . . . . . . . . . . . . . . . . Kicked . | . . . . . . . . . . . . . . . . . . Crushed . | . . . . . . . . . . . . . . . . . . Highest Temperature 21 | . . . 4 . . . . . 21 . . . . . . . . Average Temperature 3 | . . . 2 . . . . . 3 . . . . . . . . Received Heat Transfer 1212 | . 51 120 396 117 12 . 249 . 45 18 . 12 . . 30 45 117 Siege Activations . | . . . . . . . . . . . . . . . . . . Robots Corrupted . | . . . . . . . . . . . . . . . . . . Combat Hostiles . | . . . . . . . . . . . . . . . . . . Parts Fried 23 | . . . 14 . . . . . . . . . . . 4 2 3 Impact Corruptions 37 | . . . 15 1 . . . . . . . . . . 8 7 6 Robots Melted . | . . . . . . . . . . . . . . . . . . Combat Hostiles . | . . . . . . . . . . . . . . . . . . Parts Melted . | . . . . . . . . . . . . . . . . . . Heat Transferred . | . . . . . . . . . . . . . . . . . . Parts Sabotaged . | . . . . . . . . . . . . . . . . . . Parts Stolen . | . . . . . . . . . . . . . . . . . . Parts Stripped . | . . . . . . . . . . . . . . . . . . Power Chain Reactions . | . . . . . . . . . . . . . . . . . . Missiles Intercepted . | . . . . . . . . . . . . . . . . . . Alert | -11 -10 -9 -8 -7 -7 -6 -6 -5 -5 -5 -5 -4 -4 -3 -3 -2 -1 ------- Run | Jun Mat Mat Mat Fac Sto Fac Ext Fac Upp Upp Zhi Pro Fac Res Qua Res Acc Peak Influence 1089 | . 81 228 468 151 224 412 496 280 . . . . 85 290 672 716 1089 Initial 378 | . . 29 98 133 61 101 201 129 . . . . 46 36 162 378 268 Average 302 | . 35 126 253 98 110 293 296 227 . . . . 61 211 378 547 591 Maximum Alert Level 3 | . . 1 2 . 1 2 2 1 . . . . . 1 2 3 3 Low Security (%) 35 | 100 100 78 35 100 94 30 30 21 . . . . 100 39 6 . . Level 1 36 | . . 21 54 . 5 31 41 78 . . . . . 60 50 5 31 Level 2 22 | . . . 9 . . 38 27 . . . . . . . 43 83 27 Level 3 5 | . . . . . . . . . . . . . . . . 11 40 Level 4 . | . . . . . . . . . . . . . . . . . . Level 5 . | . . . . . . . . . . . . . . . . . . High Security . | . . . . . . . . . . . . . . . . . . Max Security . | . . . . . . . . . . . . . . . . . . Squads Dispatched 22 | . 3 1 2 1 . 2 . 1 . 1 . . 1 2 3 2 3 Investigation 7 | . 1 . 2 . . . . . . . . . . 1 1 . 2 Extermination 1 | . . . . . . . . . . . . . . . 1 . . Reinforcement 13 | . 2 1 . 1 . 2 . 1 . . . . 1 1 1 2 1 Assault 1 | . . . . . . . . . . 1 . . . . . . . Garrison . | . . . . . . . . . . . . . . . . . . Intercept . | . . . . . . . . . . . . . . . . . . Searches Triggered 4 | . . . . . . . 1 . . . . . . . 1 1 1 Construction Impeded 1 | . . . . . . 1 . . . . . . . . . . . Haulers Reinforced 2 | . . . . . . . . . . . . . . 1 . . 1 Active Scanning Responses . | . . . . . . . . . . . . . . . . . . Cargo Convoy Interrupts . | . . . . . . . . . . . . . . . . . . Stealth | -11 -10 -9 -8 -7 -7 -6 -6 -5 -5 -5 -5 -4 -4 -3 -3 -2 -1 --------- Run | Jun Mat Mat Mat Fac Sto Fac Ext Fac Upp Upp Zhi Pro Fac Res Qua Res Acc Distress Signals 13 | . 1 . 3 1 1 . 2 . . . . . . . 1 2 2 Communications Jammed . | . . . . . . . . . . . . . . . . . . Distress Signals . | . . . . . . . . . . . . . . . . . . Times Spotted 283 | . 15 10 18 10 6 13 17 17 7 13 . 4 10 7 31 28 77 Peak Tracking Total 32 | . 12 6 7 6 6 11 8 10 14 11 . 4 10 6 14 11 32 Tactical Retreats 45 | . 1 1 1 4 1 4 2 4 . 1 . 2 . 3 5 4 12 Traps | -11 -10 -9 -8 -7 -7 -6 -6 -5 -5 -5 -5 -4 -4 -3 -3 -2 -1 ------- Run | Jun Mat Mat Mat Fac Sto Fac Ext Fac Upp Upp Zhi Pro Fac Res Qua Res Acc Traps Triggered 12 | . 2 . . 1 1 2 . 3 . . . . . . 1 2 . Indirectly . | . . . . . . . . . . . . . . . . . . Trap Hack Attempts . | . . . . . . . . . . . . . . . . . . Triggered . | . . . . . . . . . . . . . . . . . . Disarmed . | . . . . . . . . . . . . . . . . . . Reprogrammed . | . . . . . . . . . . . . . . . . . . Reused . | . . . . . . . . . . . . . . . . . . Traps Extracted . | . . . . . . . . . . . . . . . . . . Installed . | . . . . . . . . . . . . . . . . . . Triggered 2 | . . . . . . . . . . 1 . . . . 1 . . Machines | -11 -10 -9 -8 -7 -7 -6 -6 -5 -5 -5 -5 -4 -4 -3 -3 -2 -1 ---------- Run | Jun Mat Mat Mat Fac Sto Fac Ext Fac Upp Upp Zhi Pro Fac Res Qua Res Acc Machines Disabled 11 | . . . . . . 1 1 2 . . . . . . 6 1 . Max in Single Turn 1 | . . . . . . . . . . . . . . . 1 1 . Garrison Access 2 | . . . . . . . . . . . . . . 1 . . 1 Machines Repaired . | . . . . . . . . . . . . . . . . . . Machines Sabotaged . | . . . . . . . . . . . . . . . . . . Overloaded Fab Kills . | . . . . . . . . . . . . . . . . . . Hacking | -11 -10 -9 -8 -7 -7 -6 -6 -5 -5 -5 -5 -4 -4 -3 -3 -2 -1 --------- Run | Jun Mat Mat Mat Fac Sto Fac Ext Fac Upp Upp Zhi Pro Fac Res Qua Res Acc Machines Accessed 73 | . 2 3 5 6 7 5 4 1 1 . 6 . 3 5 15 5 5 Terminals 45 | . 1 3 1 4 7 4 3 . . . . . . 3 12 4 3 Fabricators 2 | . . . . 1 . . . . . . . . 1 . . . . Repair Stations 3 | . . . 1 . . . . . . . . . . 1 1 . . Recycling Units 7 | . 1 . 2 . . . 1 1 . . . . 1 . . 1 . Scanalyzers 5 | . . . 1 1 . 1 . . . . . . 1 . 1 . . Garrison Access 4 | . . . . . . . . . . . . . . 1 1 . 2 Total Hacks 198 | . 7 9 25 16 18 12 9 4 1 . 19 . 10 11 29 17 11 Successful 125 | . 4 6 22 11 10 7 6 2 1 . 19 . 7 4 15 8 3 Failed 73 | . 3 3 3 5 8 5 3 2 . . . . 3 7 14 9 8 Catastrophic 8 | . 1 . . . . 1 . . . . . . 1 . 1 1 3 Database Lockouts . | . . . . . . . . . . . . . . . . . . Manual 49 | . 6 6 6 2 7 4 3 2 . . . . 3 3 4 1 2 Terminals 111 | . 5 9 3 11 18 10 5 . . . . . . 9 20 14 7 Fabricators 3 | . . . . 1 . . . . . . . . 2 . . . . Repair Stations 10 | . . . 5 . . . . . . . . . . 1 4 . . Recycling Units 19 | . 2 . 3 . . . 4 4 . . . . 3 . . 3 . Scanalyzers 28 | . . . 14 4 . 2 . . . . . . 5 . 3 . . Garrison Access 7 | . . . . . . . . . . . . . . 1 2 . 4 Terminal Hacks 64 | . 2 3 1 6 7 4 3 . 1 . 19 . . 2 9 6 1 Record 12 | . . . . . . . . . . . 7 . . . 4 1 . Part Schematic 4 | . . . . . . . . . . . 4 . . . . . . Robot Analysis 5 | . 1 . . . . . . . . . 4 . . . . . . Prototype ID Bank 18 | . . 2 1 1 3 1 . . . . 4 . . 1 2 2 1 Open Door 8 | . . . . . 3 . 2 . 1 . . . . . 2 . . Open DSF 2 | . . . . 1 . 1 . . . . . . . . . . . Branch Access Points 3 | . . . . 1 . 1 . . . . . . . . 1 . . Emergency Access Points 1 | . . . . 1 . . . . . . . . . . . . . Terminal Index 3 | . . 1 . 1 . . . . . . . . . 1 . . . Unreport Threat 3 | . . . . 1 . . . . . . . . . . . 2 . Locate Traps 1 | . . . . . . . . . . . . . . . . 1 . Recall Investigation 1 | . 1 . . . . . . . . . . . . . . . . Hauler Manifests 1 | . . . . . 1 . . . . . . . . . . . . Zone Layout 2 | . . . . . . 1 1 . . . . . . . . . . Fabricator Hacks . | . . . . . . . . . . . . . . . . . . Repair Station Hacks 5 | . . . 3 . . . . . . . . . . . 2 . . Scan Component 2 | . . . 1 . . . . . . . . . . . 1 . . Repair 1 | . . . 1 . . . . . . . . . . . . . . Refit 2 | . . . 1 . . . . . . . . . . . 1 . . Recycling Unit Hacks 8 | . 1 . 1 . . . 2 2 . . . . 1 . . 1 . Report Inventory 6 | . 1 . 1 . . . 1 1 . . . . 1 . . 1 . Retrieve Components 2 | . . . . . . . 1 1 . . . . . . . . . Scanalyzer 25 | . . . 12 4 . 2 . . . . . . 5 . 2 . . Insert Component 12 | . . . 5 2 . 1 . . . . . . 3 . 1 . . Analyze 13 | . . . 7 2 . 1 . . . . . . 2 . 1 . . Garrison Access Hacks 2 | . . . . . . . . . . . . . . 1 . . 1 Seal Access 2 | . . . . . . . . . . . . . . 1 . . 1 Unauthorized Hacks 21 | . 1 3 5 1 3 1 1 . . . . . 1 1 2 1 1 Terminals 14 | . . 3 2 . 3 1 . . . . . . . 1 2 1 1 Track 3 | . . . . . 1 . . . . . . . . . 1 1 . Assimilate 4 | . . . 1 . 1 . . . . . . . . . 1 . 1 Botnet 4 | . . 2 . . 1 1 . . . . . . . . . . . Operators 1 | . . 1 . . . . . . . . . . . . . . . Sabotage 1 | . . . 1 . . . . . . . . . . . . . . Search 1 | . . . . . . . . . . . . . . 1 . . . Fabricators 2 | . . . . 1 . . . . . . . . 1 . . . . Fabnet 2 | . . . . 1 . . . . . . . . 1 . . . . Repair Stations . | . . . . . . . . . . . . . . . . . . Recycling Units 4 | . 1 . 2 . . . 1 . . . . . . . . . . Reject 1 | . . . 1 . . . . . . . . . . . . . . Mask 3 | . 1 . 1 . . . 1 . . . . . . . . . . Scanalyzers 1 | . . . 1 . . . . . . . . . . . . . . Extract 1 | . . . 1 . . . . . . . . . . . . . . Garrison Access . | . . . . . . . . . . . . . . . . . . Data Cores Recovered 1 | . . . . . . . . . . . . . . 1 . . . Used . | . . . . . . . . . . . . . . . . . . Hacking Detections 52 | . 1 3 4 5 5 3 2 1 . . . . 2 4 13 5 4 Full Trace Events 3 | . . . . . . . . . . . . . . . 1 . 2 Feedback Events . | . . . . . . . . . . . . . . . . . . Feedback Blocked . | . . . . . . . . . . . . . . . . . . Robot Schematics Acquired 1 | . . . . . . . . . . . . . . . 1 . . Robots Built . | . . . . . . . . . . . . . . . . . . Authchips . | . . . . . . . . . . . . . . . . . . Time . | . . . . . . . . . . . . . . . . . . Total Robot Build Rating . | . . . . . . . . . . . . . . . . . . Part Schematics Acquired 21 | . . . 8 2 . 1 . . . . 4 . 2 . 4 . . Parts Built . | . . . . . . . . . . . . . . . . . . Authchips . | . . . . . . . . . . . . . . . . . . Time . | . . . . . . . . . . . . . . . . . . Total Part Build Rating . | . . . . . . . . . . . . . . . . . . Parts Repaired 1 | . . . 1 . . . . . . . . . . . . . . Time 26 | . . . 26 . . . . . . . . . . . . . . Parts Recycled . | . . . . . . . . . . . . . . . . . . Recycled Matter . | . . . . . . . . . . . . . . . . . . Retrieved Matter . | . . . . . . . . . . . . . . . . . . Retrieved Components 5 | . . . . . . . 3 2 . . . . . . . . . Parts Scanalyzed 11 | . . . 5 2 . 1 . . . . . . 2 . 1 . . Part Schematics Acquired 10 | . . . 5 2 . 1 . . . . . . 2 . . . . Parts Damaged 2 | . . . 1 . . . . . . . . . 1 . . . . Bothacking | -11 -10 -9 -8 -7 -7 -6 -6 -5 -5 -5 -5 -4 -4 -3 -3 -2 -1 ------------ Run | Jun Mat Mat Mat Fac Sto Fac Ext Fac Upp Upp Zhi Pro Fac Res Qua Res Acc Used RIF Installer . | . . . . . . . . . . . . . . . . . . Robots Hacked 8 | . . . . 3 . 1 2 . . . . . . . 2 . . Non-combat 4 | . . . . 3 . . 1 . . . . . . . . . . Combat 4 | . . . . . . 1 1 . . . . . . . 2 . . Robot Hacks Applied 4 | . . . . 3 . . 1 . . . . . . . . . . no_distress 1 | . . . . . . . 1 . . . . . . . . . . find_chute 1 | . . . . 1 . . . . . . . . . . . . . find_fabricator 1 | . . . . 1 . . . . . . . . . . . . . find_recycling 1 | . . . . 1 . . . . . . . . . . . . . Relay Couplers Released . | . . . . . . . . . . . . . . . . . . Fabnet Peak Effective % 3 | . . . . . . 3 3 1 1 1 1 . . 3 3 1 . Autooverrided 4 | . . . . . . 1 1 . . . . . . . 2 . . Robots Rewired 9 | . . . . 1 . . 8 . . . . . . . . . . Allies Hacked . | . . . . . . . . . . . . . . . . . . Hacks Repelled . | . . . . . . . . . . . . . . . . . . Allies | -11 -10 -9 -8 -7 -7 -6 -6 -5 -5 -5 -5 -4 -4 -3 -3 -2 -1 -------- Run | Jun Mat Mat Mat Fac Sto Fac Ext Fac Upp Upp Zhi Pro Fac Res Qua Res Acc Total Allies 30 | . . . 1 1 1 1 10 . . . . . . . 3 . 13 Largest Group 8 | . . . 1 1 1 1 7 6 . . . . . . 2 . 8 Highest-Rated Group 327 | . . . 10 16 26 32 327 171 . . . . . . 109 . 112 Highest-Rated Ally 159 | . . . 10 16 26 32 159 39 . . . . . . 82 . 45 Total Orders . | . . . . . . . . . . . . . . . . . . Ally Attacks 185 | . . . . . . 2 111 17 . . . . . . 6 . 49 Total Damage 4404 | . . . . . . 41 2488 777 . . . . . . 156 . 942 Kills 26 | . . . . . . . 12 7 . . . . . . 1 . 6 Allies Corrupted 1 | . . . . . . . . . . . . . . . . . 1 Allies Melted . | . . . . . . . . . . . . . . . . . . Intel | -11 -10 -9 -8 -7 -7 -6 -6 -5 -5 -5 -5 -4 -4 -3 -3 -2 -1 ------- Run | Jun Mat Mat Mat Fac Sto Fac Ext Fac Upp Upp Zhi Pro Fac Res Qua Res Acc Robot Analysis Total 5 | . 1 . . . . . . . . . 4 . . . . . . Derelict Logs Recovered 2 | . . . . . . . . . 1 1 . . . . . . . Drone Launches . | . . . . . . . . . . . . . . . . . . Drone Recoveries . | . . . . . . . . . . . . . . . . . . Exploration | -11 -10 -9 -8 -7 -7 -6 -6 -5 -5 -5 -5 -4 -4 -3 -3 -2 -1 ------------- Run | Jun Mat Mat Mat Fac Sto Fac Ext Fac Upp Upp Zhi Pro Fac Res Qua Res Acc Turns Passed 4006 | 11 123 135 437 238 85 190 670 297 90 124 103 149 100 191 368 280 415 Spaces Moved 7563 | 22 233 178 340 347 212 453 738 458 302 316 224 346 293 539 915 694 953 Core 544 | 22 233 104 20 137 . . 1 2 . . . . . . . . 25 Treads . | . . . . . . . . . . . . . . . . . . Legs 347 | . . . 12 24 . . 311 . . . . . . . . . . Wheels 187 | . . . 106 . . . 35 46 . . . . . . . . . Hover . | . . . . . . . . . . . . . . . . . . Flight 6485 | . . 74 202 186 212 453 391 410 302 316 224 346 293 539 915 694 928 Fastest Speed 12 | 50 50 37 37 29 29 29 29 27 27 29 25 25 22 22 12 15 27 Average Speed 36 | 50 50 44 67 55 29 29 72 35 27 32 29 25 22 22 24 27 32 Slowest Speed 200 | 50 50 50 190 190 29 29 195 200 29 34 34 25 22 22 99 31 50 Overloaded Moves 408 | . . . . . . . . . . . . . . . 113 166 129 Propulsion Burnouts . | . . . . . . . . . . . . . . . . . . Robots Hopped 82 | . . 2 2 8 7 1 2 . . . . . 6 4 2 5 43 Cave-ins Triggered . | . . . . . . . . . . . . . . . . . . Exploration Rate (%) 37 | 3 53 28 35 13 43 16 53 11 58 67 63 57 12 16 78 29 31 Regions Visited 17 Branch Regions 7 Pre-discovered Areas 3 | . . . . . . . . . . . 3 . . . . . . Known Exits Taken 2 | . . . . 1 . 1 . . . . . . . . . . . Unknown Exits Taken 15 | 1 1 1 1 . 1 . 1 1 1 1 1 1 1 1 1 1 . Scrap Searched 3 | . . . . . . . . . 1 2 . . . . . . . Spaces Dug 74 | . . . 1 3 . . . 12 . . . . 6 3 16 14 19 Terrain Destroyed 74 | . . . 1 3 . . . 12 . . . . 6 3 16 14 19 Melee 74 | . . . 1 3 . . . 12 . . . . 6 3 16 14 19 Projectile . | . . . . . . . . . . . . . . . . . . AOE . | . . . . . . . . . . . . . . . . . . Terrain Rammed . | . . . . . . . . . . . . . . . . . . Walls Destroyed . | . . . . . . . . . . . . . . . . . . Machines Disabled . | . . . . . . . . . . . . . . . . . . Actions | -11 -10 -9 -8 -7 -7 -6 -6 -5 -5 -5 -5 -4 -4 -3 -3 -2 -1 --------- Run | Jun Mat Mat Mat Fac Sto Fac Ext Fac Upp Upp Zhi Pro Fac Res Qua Res Acc Total 8298 | 21 237 199 448 364 229 509 832 547 308 337 246 407 307 582 999 750 976 Wait 243 | . . . 34 . 6 4 19 37 . 16 . 61 8 23 14 5 16 Move 7399 | 21 232 173 335 332 198 450 733 457 301 315 223 345 282 530 910 684 878 Hop 65 | . . 2 2 6 6 1 2 . . . . . 4 4 2 4 32 Pick Up 32 | . 2 3 2 . 2 3 4 2 . 2 2 . 1 . 9 . . Fast Attach 91 | . 3 3 11 8 . 5 9 8 3 . 5 . . 7 8 13 8 Attach 31 | . . 2 5 2 1 1 2 5 . 2 . 1 2 1 5 . 2 Detach 16 | . . 1 4 1 1 1 . 3 1 1 . . . 1 . . 2 Swap 15 | . . . . . . 3 6 2 . . 2 . 1 . 1 . . Drop 66 | . . . 2 2 2 5 8 2 3 1 6 . 1 3 15 11 5 Fire . | . . . . . . . . . . . . . . . . . . Melee 263 | . . 15 53 13 . . 36 23 . . 8 . 8 13 34 27 33 Ram . | . . . . . . . . . . . . . . . . . . Kick . | . . . . . . . . . . . . . . . . . . Crush . | . . . . . . . . . . . . . . . . . . Escape Stasis 77 | . . . . . 13 36 13 8 . . . . . . 1 6 . Rewire . | . . . . . . . . . . . . . . . . . . Trap . | . . . . . . . . . . . . . . . . . . Miscellaneous . | . . . . . . . . . . . . . . . . . . Route ------- -11/Junkyard -10/Materials -9/Materials -8/Materials -7/Factory (discovered 4 exits: *Sto x2 / Low x2) -7/Storage -6/Factory (discovered 5 exits: *Fac / Low x2 / *Ext x2) -6/Extension -5/Factory -5/Upper Caves -5/Upper Caves (discovered 2 exits: *Fac / *Zhi) -5/Zhirov -4/Proximity Caves -4/Factory -3/Research (discovered 2 exits: *Res / *Qua) -3/Quarantine -2/Research (discovered 2 exits: *Acc x2) -1/Access History --------- Turn | Location | Event 4 | -11/Junkyard | Discovered new exit (range 16) 12 | -11/Junkyard | Entered Materials 130 | -10/Materials | Core integrity fell below 50% 131 | -10/Materials | Discovered new exit (range 10) 135 | -10/Materials | Entered another Materials area 135 | -9/Materials | Evolved 2 slots: Utility x2 213 | -9/Materials | Core integrity fell below 50% 267 | -9/Materials | Discovered new exit (range 4) 270 | -9/Materials | Entered another Materials area 270 | -8/Materials | Evolved 2 slots: Utility x2 321 | -8/Materials | Build established: Mutant 365 | -8/Materials | Repaired Propulsion Shielding 421 | -8/Materials | Discovered new exit (range 10) 503 | -8/Materials | Lost 3 parts (1p2n) 633 | -8/Materials | Core integrity fell below 50% 707 | -8/Materials | Entered Factory 707 | -7/Factory | Evolved 2 slots: Propulsion x2 778 | -7/Factory | Build established: Hacker-Mutant 782 | -7/Factory | Identified exit to Storage 782 | -7/Factory | Identified exit to Lower Caves 809 | -7/Factory | Lost 5 parts (1p1n2u1w) 945 | -7/Factory | Entered Storage 1029 | -7/Storage | Discovered new exit (range 6) 1030 | -7/Storage | Entered Factory 1030 | -6/Factory | Evolved 2 slots: Propulsion x1, Utility x1 1114 | -6/Factory | Discovered new exit (range 16) 1114 | -6/Factory | Identified exit to Lower Caves 1114 | -6/Factory | Identified exit to Extension 1175 | -6/Factory | Discovered new exit (range 14) 1220 | -6/Factory | Entered Extension 1230 | -6/Extension | Build established: Hacker-Sprinter 1262 | -6/Extension | Spotted B-75 Beast 1378 | -6/Extension | Rescued A7 1570 | -6/Extension | Search patrols dispatched 1802 | -6/Extension | Spotted B-75 Beast 1829 | -6/Extension | Allies destroyed B-75 Beast 1849 | -6/Extension | Allies destroyed B-75 Beast 1865 | -6/Extension | Discovered new exit (range 3) 1879 | -6/Extension | Lost 9 parts (1p5n3u) 1890 | -6/Extension | Entered Factory 1890 | -5/Factory | Accompanied by 7 allies (A7) 1890 | -5/Factory | Evolved 2 slots: Utility x2 1913 | -5/Factory | Build established: Commander-Mutant 1959 | -5/Factory | Assembled infested ambush trap array 2162 | -5/Factory | Discovered new exit (range 9) 2187 | -5/Factory | Entered Upper Caves 2215 | -5/Upper Caves | Learned Factory emergency access door positions 2257 | -5/Upper Caves | Spotted B-75 Beast 2272 | -5/Upper Caves | Discovered new exit (range 16) 2273 | -5/Upper Caves | Attracted the attention of an 0b10 outpost 2277 | -5/Upper Caves | Entered another Upper Caves area 2296 | -5/Upper Caves | Discovered new exit (range 18) 2360 | -5/Upper Caves | Learned Factory stockpile data 2381 | -5/Upper Caves | Discovered new exit (range 15) 2395 | -5/Upper Caves | Attracted the attention of an 0b10 outpost 2401 | -5/Upper Caves | Entered Zhirov 2401 | -5/Zhirov | Discovered new exit (range 3) 2408 | -5/Zhirov | Met Zhirov 2414 | -5/Zhirov | Learned location of Testing (-2) 2421 | -5/Zhirov | Learned location of Quarantine (-3) 2421 | -5/Zhirov | Learned location of Command (-1) 2423 | -5/Zhirov | Zhirov requested help retrieving the SGEMP Prototype 2430 | -5/Zhirov | Found Alien Artifact 2430 | -5/Zhirov | Identified Integrated Dissipator 2430 | -5/Zhirov | Installed Integrated Dissipator, increased core heat dissipation (+20) 2482 | -5/Zhirov | Found Alien Artifact 2504 | -5/Zhirov | Entered Proximity Caves 2543 | -4/Proximity Caves | Spotted B-86 Titan 2568 | -4/Proximity Caves | Discovered new exit (range 19) 2653 | -4/Proximity Caves | Entered Factory 2653 | -4/Factory | Evolved 2 slots: Propulsion x1, Utility x1 2698 | -4/Factory | Identified Transdimensional Reconstructor 2719 | -4/Factory | Build established: Hacker-Sprinter 2744 | -4/Factory | Discovered new exit (range 5) 2753 | -4/Factory | Entered Research 2753 | -3/Research | Evolved 2 slots: Utility x2 2869 | -3/Research | Discovered new exit (range 11) 2939 | -3/Research | Discovered new exit (range 5) 2944 | -3/Research | Entered Quarantine 2950 | -3/Quarantine | Found Alien Slashing Weapon 2952 | -3/Quarantine | Identified Sigix Broadsword 2970 | -3/Quarantine | Found Alien Artifact 2975 | -3/Quarantine | Spotted Alpha 7 2996 | -3/Quarantine | Found Sigix Corpse 3058 | -3/Quarantine | Identified Subatomic Replicator 3088 | -3/Quarantine | Lost 3 parts (2n1w) 3165 | -3/Quarantine | Used Subatomic Replicator to replicate Alien Artifact 3166 | -3/Quarantine | Found Alien Artifact 3166 | -3/Quarantine | Identified Core Reset Matrix 3166 | -3/Quarantine | Used Core Reset Matrix 3170 | -3/Quarantine | Detected hypermatrix surge 3170 | -3/Quarantine | Sensed 5 artifacts in vicinity 3172 | -3/Quarantine | Met incapacitated Sigix Warrior 3172 | -3/Quarantine | Lockdown squad dispatched 3173 | -3/Quarantine | Acquired the access code to the Sigix quarantine chamber 3173 | -3/Quarantine | Unlocked Sigix quarantine chamber 3223 | -3/Quarantine | Identified Core Reset Matrix 3225 | -3/Quarantine | Sensed 5 artifacts in vicinity 3239 | -3/Quarantine | Search patrols dispatched 3248 | -3/Quarantine | Found Phase Redirector 3265 | -3/Quarantine | Discovered new exit (range 9) 3272 | -3/Quarantine | Found Matter Drive 3312 | -3/Quarantine | Entered Research 3312 | -2/Research | Evolved 2 slots: Power x1, Utility x1 3337 | -2/Research | Spotted B-90 Cyclops 3355 | -2/Research | Discovered new exit (range 17) 3397 | -2/Research | Spotted B-90 Cyclops 3483 | -2/Research | Discovered new exit (range 16) 3559 | -2/Research | Spotted B-90 Cyclops 3562 | -2/Research | Search patrols dispatched 3592 | -2/Research | Entered Access 3592 | -1/Access | Evolved 2 slots: Propulsion x1, Utility x1 3657 | -1/Access | Spotted B-99 Colossus 3657 | -1/Access | Spotted B-99 Colossus 3842 | -1/Access | Search patrols dispatched 3976 | -1/Access | Core integrity fell below 50% 3980 | -1/Access | Emitted hypermatrix ping 3985 | -1/Access | Assembled emerged from beneath the floor 3986 | -1/Access | Assembled emerged from beneath the floor 3986 | -1/Access | Core integrity fell below 20% 4007 | -1/Access | Destroyed by P-80 Master with Gamma Rifle Last Messages --------------- 04000_ as-76569 destroyed. 04000_ P-80 Master resets P-80 Master, system corruption cleaned. 04001_ Slug penetrates Wall. 04001_ as-45435 suffers critical hit (Destroy). 04001_ as-45435 destroyed. 04001_ Slug penetrates Wall. 04001_ Adv. Corruption Screen intercepted 1% system corruption. 04001_ Adv. Corruption Screen expended. 04002_ Acquired Xenon Bombardment Thruster. 04002_ as-46945 destroyed. 04003_ Acquired 15 matter. 04003_ Adv. System Shield destroyed. 04004_ Acquired Xenon Bombardment Thruster. 04004_ P-80 Master destroyed. 04005_ M-36 Artificer repairs H-88 Terminator. 04006_ Xenon Bombardment Thruster destroyed. 04007_ Slug penetrates Wall. 04007_ Slug penetrates G-73 Enforcer. 04007_ Slug penetrates M-36 Artificer. [Achievement: Collector] Map ----- +----------------------------------------------------+ | ??????????????????????????????????????????? # | | ??????????????????????????????????????????? # | | ??????????????????????????????????????????? + | | ????????????????????????????"?????????????? # | | ???????????????????????????"""????????????? # | | ???????????????????? ???"""?????????????? # | | ???????????????????# ????"??????????????? # | | ???????????????????# ???????????????????? # | | ???????????????????# ???????????????????? # | | ???????????????????# ###############?????#/# | | ???????????????????# # """S""" #?????# | | ???????????????????# # """ """ #?????# | | ???????????????????# # ] #?????# | | ???????????????????+ # #?????# | | ???????????????????# # #?????# | | ???????????????????# # #?????# | | ???????????????????# #####+############### | | ???????????????????# #??# | | ???????????????????# #??# ############## ##### | | ???????????????????# #??# #????????????# #???? | | ???????????????????# #??# #??????????### ###?? | | ???""??????????????# #??# #??????????# #?? | | ???""??????????????# % #??# #??#######?# ### | | ???S"???????# ###### ####% #?] #?# | | ??"""??###### p %k #? #?# ### | | ??"""??+ shgg@pg=|# #?# #?? | | ??"""??###### ghm !%R!%# #?## ##?? | | ????????????#########/#####%%%+ #??# #??? | | ????????????????# %% %[= # %# ! #??# #??? | | ????????????????# [=[% # # #??# #??? | | ????????????????# [%% # #? #??# #??? | | ????????????????# % # #? #??### #??? | | ????????????????# " # #??#######????# #??? | | ????????????????# """ # #?????????????# #??? | | ????????????????#% """ # #?????????????# #??? | | ????????????????# " ! # #?????????????? #??? | | ????????????????########### #?????????????? #??? | | ??????????????????????????# * #?????????????? #??? | | ??????????????????????????#"""#?????????????? ???? | | ????????????????????????????????????????????? ???? | | ????????????????????????????????????????????? ???? | | ????????????????????????????????????????????? ???? | | ????????????????????????????????????????????? ???? | | ?????????????????????????????????????????????????? | | ?????????????????????????????????????????????????? | | ?????????????????????????????????????????????????? | | ?????????????????????????????????????????????????? | | ?????????????????????????????????????????????????? | | ?????????????????????????????????????????????????? | | ?????????????????????????????????????????????????? | +----------------------------------------------------+ Best States ------------- Heat Dissipation 72 Energy Generation 39 Energy Capacity 1150 Matter Stores 300 Matter Capacity 300 Sight Range 22 Robot Scan Range 16 Terrain Scan Range 14 Terrain Scan Density 85 Power Amplification 30 Base Temperature (-) 200 Corruption Block 20 Armor Coverage 225 Resistance: EM 20 Propulsion Shielding 66 Utility Shielding 66 Melee Speed Boost 30 Evasion (%) 74 Melee Accuracy 30 Armor Integrity Analysis 30 Matter Filtering 50 Force Boost 20 Offensive Hacking 32 Defensive Hacking 14 Item Schematics ----------------- Helical Railgun | -3/Quarantine | Archive Cld. Phase Gun | -3/Quarantine | Archive Hvy. Gatling Laser | -3/Quarantine | Archive Tiamat Missile Launcher | -3/Quarantine | Archive Robot Schematics ------------------ O-32 Director | -3/Quarantine | Archive Fabricated ------------ Nothing Alien Tech Used ----------------- Integrated Dissipator Sigix Broadsword Subatomic Replicator Core Reset Matrix Phase Redirector Matter Drive Achievements -------------- Collector Challenges ------------ None Game ------ Seed TransportMatterBoomstick Manual? 0 Play Time 02:46:40 Cumulative 308.1 hours Start 2024.01.29 @ 18:02:04 End 2024.01.29 @ 21:57:45 Sessions 1 Manual Loads 0 Difficulty Rogue Special Mode None Game No. 200 Rogue 200 Adventurer 0 Explorer 0 Win Type - Total 3 Types 3/0/0/0/0/0/0/0/0 Lore% 68 Gallery% 75 Achievement% 56 Wizard Run 0 Options --------- ASCII 0 Keyboard 0 Movement Numpad Keybinds 0 Fullscreen 1 Font 18/SmallcapsGlow Map View 76x50 Tactical HUD 1 Map Filters NONE Filters NONE Steam 1 RUN: bb149e22-4f9e-4d97-9cec-d02fe1c3e80a